fUSD/lending_fUSD_20260109
["ID","MTS","AMOUNT","RATE_DAILY","PERIOD"]
[401155609,1767988242702,-175.26,0.00017684,2]
[401155610,1767988242711,-6709.59935273,0.0001773,2]
[401155611,1767988242721,-229.74942432,0.00017746,2]
[401155612,1767988242731,-260.0,0.00017753,2]
[401155613,1767988242740,-151.0,0.00017769,2]
[401155614,1767988242749,-183.506,0.00017779,2]
[401155615,1767988242759,-2899.643,0.00017782,2]
[401155616,1767988242769,-447.0,0.00017789,2]
[401155617,1767988242778,-150.0,0.00017789,2]
[401155618,1767988242790,-10000.0,0.000178,2]
[401155619,1767988242799,-2000.0,0.000178,2]
[401155620,1767988242809,-1000.0,0.000178,2]
[401155621,1767988242819,-223.15473746,0.000178,2]
[401155622,1767988242829,-200.35779431,0.00017808,2]
[401155623,1767988242839,-447.0,0.00017815,2]
[401155624,1767988242849,-1000.0,0.00017818,2]
[401155625,1767988242858,-1000.0,0.00017823,2]
[401155626,1767988242869,-1000.0,0.00017838,2]
[401155628,1767988242878,-1000.0,0.00017839,2]
[401155630,1767988242888,-223.15473745,0.0001785,2]
[401155631,1767988242898,-200.0,0.00017855,2]
[401155633,1767988242907,-2000.0,0.00017856,2]
[401155634,1767988242916,-200.0,0.00017856,2]
[401155635,1767988242926,-200.0,0.00017856,2]
[401155636,1767988242936,-478.0,0.00017865,2]
[401155638,1767988242946,-152.0,0.00017866,11]
[401155639,1767988242955,-478.0,0.00017873,2]
[401155640,1767988242964,-151.0,0.00017885,2]
[401155641,1767988242974,-22581.67070426,0.00017899,2]
[401155642,1767988242983,-56266.48215623,0.00017899,2]
[401155643,1767988242991,-9704.82107619,0.000179,3]
[401155644,1767988243001,-10101.4972,0.000179,2]
[401155645,1767988243011,-262.18354582,0.000179,2]
[401155646,1767988243020,-1000.0,0.000179,2]
[401155647,1767988243029,-15841.74849375,0.000179,2]
[401155648,1767988243038,-12270.7522746,0.000179,2]
[401155649,1767988243047,-565.17771938,0.000179,2]
[401155650,1767988243056,-27199.40669553,0.000179,2]
[401155651,1767988243066,-5419.66632669,0.000179,2]
[401155652,1767988243075,-1771.20287063,0.000179,2]
[401155653,1767988243085,-5055.06085975,0.000179,2]
[401155654,1767988243094,-1771.20287051,0.000179,2]
[401155655,1767988243103,-1771.20287051,0.000179,2]
[401155656,1767988243112,-1771.20287051,0.000179,2]
[401155657,1767988243121,-1771.20287051,0.000179,2]
[401155658,1767988243131,-1771.20287051,0.000179,2]
[401155659,1767988243140,-91529.11734455,0.000179,2]
[401155660,1767988243150,-129266.43098867,0.000179,2]
[401155661,1767988243159,-167268.0339,0.000179,2]
[401155662,1767988243168,-7367.0,0.000179,2]
[401155663,1767988243177,-329.0,0.00017913,2]
[401155664,1767988243188,-1000.0,0.00017932,2]
[401155665,1767988243197,-500.0,0.00017973,2]
[401155666,1767988243206,-500.0,0.00017973,2]
[401155667,1767988243216,-515.27642925,0.00017973,2]
[401155668,1767988243225,-279.31517583,0.00017973,2]
[401155669,1767988243234,-500.0,0.00017973,2]
[401155670,1767988243244,-195.06667749,0.00017973,2]
[401155671,1767988243253,-168.53464326,0.00017973,2]
[401155672,1767988243263,-500.0,0.00017973,2]
[401155673,1767988243274,-500.0,0.00017973,2]
[401155674,1767988243284,-500.0,0.00017973,2]
[401155675,1767988243294,-500.0,0.00017973,2]
[401155676,1767988243303,-500.0,0.00017973,2]
[401155677,1767988243313,-500.0,0.00017973,2]
[401155678,1767988243323,-500.0,0.00017973,2]
[401155679,1767988243332,-500.0,0.00017973,2]
[401155680,1767988243341,-500.0,0.00017973,2]
[401155681,1767988243350,-500.0,0.00017973,2]
[401155682,1767988243359,-150.0,0.00017973,2]
[401155683,1767988243369,-500.0,0.00017973,2]
[401155684,1767988243378,-500.0,0.00017973,2]
[401155685,1767988243387,-500.0,0.00017973,2]
[401155686,1767988243397,-609.94892981,0.00017973,2]
[401155687,1767988243406,-500.0,0.00017973,2]
[401155688,1767988243415,-578.02071049,0.00017973,2]
[401155689,1767988243424,-429.09119552,0.00017973,2]
[401155690,1767988243435,-500.0,0.00017973,2]
[401155691,1767988243444,-500.0,0.00017973,2]
[401155692,1767988243453,-500.0,0.00017973,2]
[401155693,1767988243463,-500.0,0.00017973,2]
[401155694,1767988243472,-500.0,0.00017973,2]
[401155695,1767988243482,-500.0,0.00017973,2]
[401155696,1767988243492,-500.0,0.00017973,2]
[401155697,1767988243502,-500.0,0.00017973,2]
[401155698,1767988243511,-500.0,0.00017973,2]
[401155699,1767988243520,-500.0,0.00017973,2]
[401155700,1767988243530,-500.0,0.00017973,2]
[401155701,1767988243539,-500.0,0.00017973,2]
[401155702,1767988243548,-500.0,0.00017973,2]
[401155703,1767988243558,-554.86072459,0.00017973,2]
[401155705,1767988243567,-500.0,0.00017973,2]
[401155706,1767988243577,-500.0,0.00017973,2]
[401155707,1767988243586,-500.0,0.00017973,2]
[401155708,1767988243596,-182.86859792,0.00017973,2]
[401155709,1767988243606,-286.84842062,0.00017973,2]
[401155710,1767988243615,-500.0,0.00017973,2]
[401155711,1767988243624,-500.0,0.00017973,2]
[401155712,1767988243634,-500.0,0.00017973,2]
[401155713,1767988243644,-500.0,0.00017973,2]
[401155714,1767988243653,-501.05787152,0.00017973,2]
[401155715,1767988243662,-500.0,0.00017973,2]
[401155716,1767988243671,-500.0,0.00017973,2]
[401155717,1767988243680,-500.0,0.00017973,2]
[401155718,1767988243689,-500.0,0.00017973,2]
[401155719,1767988243699,-500.0,0.00017973,2]
[401155720,1767988243708,-500.0,0.00017973,2]
[401155721,1767988243718,-546.15438132,0.00017973,2]
[401155722,1767988243728,-500.0,0.00017973,2]
[401155723,1767988243737,-500.0,0.00017973,2]
[401155724,1767988243747,-398.03125352,0.00017973,2]
[401155725,1767988243756,-500.0,0.00017973,2]
[401155726,1767988243765,-500.0,0.00017973,2]
[401155727,1767988243775,-165.3256661,0.00017973,2]
[401155728,1767988243784,-208.06887662,0.00017973,2]
[401155729,1767988243795,-150.0,0.00017973,2]
[401155730,1767988243804,-150.0,0.00017973,2]
[401155731,1767988243813,-1000.0,0.00017975,2]
[401155732,1767988243823,-447.0,0.00017976,2]
[401155733,1767988243832,-152.75103688,0.00017982,2]
[401155734,1767988243842,-500.0,0.00017982,2]
[401155735,1767988243851,-219.64234623,0.0001799,2]
[401155736,1767988243861,-219.64234623,0.0001799,2]
[401155737,1767988243872,-1261.0,0.00017998,2]
[401155738,1767988243882,-1261.0,0.00017998,2]
[401155739,1767988243891,-158.0,0.00017998,2]
[401155740,1767988243901,-152.0,0.00017998,2]
[401155741,1767988243911,-158.2720892,0.00017998,2]
[401155742,1767988243920,-152.0,0.00017998,2]
[401155743,1767988243929,-150.0,0.00017999,2]
[401155744,1767988243938,-273.60393039,0.00017999,2]
[401155745,1767988243947,-6705.5580555,0.00017999,2]
[401155746,1767988243957,-46592.375302,0.00017999,2]
[401155747,1767988243966,-73325.6784856,0.00017999,2]
[401155748,1767988243975,-186346.8697855,0.00017999,2]
[401155749,1767988243985,-11188.6607499,0.00017999,2]
[401155750,1767988243994,-1303.9361373,0.00017999,2]
[401155751,1767988244004,-300.0,0.00017999,2]
[401155752,1767988244013,-48050.4695967,0.00017999,2]
[401155753,1767988244022,-153.2316,0.00017999,2]
[401155754,1767988244032,-151.0,0.00017999,2]
[401155755,1767988244041,-151.0,0.00017999,2]
[401155756,1767988244050,-151.0,0.00017999,2]
[401155757,1767988244059,-151.680834,0.00017999,2]
[401155758,1767988244068,-151.0,0.00017999,2]
[401155759,1767988244078,-300.0,0.00017999,2]
[401155760,1767988244087,-666.0,0.00017999,2]
[401155761,1767988244097,-151.0,0.00017999,2]
[401155762,1767988244106,-2776.9484859,0.00017999,2]
[401155763,1767988244117,-151.0,0.00017999,2]
[401155764,1767988244126,-151.0,0.00017999,2]
[401155765,1767988244136,-151.0,0.00017999,2]
[401155766,1767988244145,-151.0,0.00017999,2]
[401155767,1767988244154,-151.0,0.00017999,2]
[401155768,1767988244164,-151.0,0.00017999,2]
[401155769,1767988244174,-151.0,0.00017999,2]
[401155770,1767988244187,-300.0,0.00017999,2]
[401155771,1767988244198,-666.0,0.00017999,2]
[401155772,1767988244208,-150.0,0.00017999,2]
[401155773,1767988244219,-157.112862,0.00017999,2]
[401155774,1767988244229,-183.936771,0.00017999,2]
[401155775,1767988244239,-183.936771,0.00017999,2]
[401155776,1767988244249,-183.936771,0.00017999,2]
[401155777,1767988244259,-183.936771,0.00017999,2]
[401155778,1767988244270,-151.0,0.00017999,2]
[401155779,1767988244280,-1346072.41150388,0.00018,2]
[401155780,1767988244365,-1731.41031661,0.00018,2]
[401155781,1767988244376,-958.7612032,0.00018,2]
[401155782,1767988244410,-730.2588125,0.00018,2]
[401155783,1767988244511,-451.972,0.00018,2]
[401155854,1767988247051,-1771.20287051,0.000179,2]
[401155855,1767988247060,-151.74037535,0.00018,2]
[401155856,1767988247097,-24.12502822,0.00018,2]
[401155857,1767988248148,-614.0,0.00017041,2]
[401155858,1767988248705,-47.58,0.00017041,2]
[401155859,1767988248714,-466.84,0.00017178,2]
[401155860,1767988248724,-223.15473745,0.00017899,2]
[401155861,1767988248733,-1771.20287051,0.000179,2]
[401155862,1767988248742,-2062.89340485,0.00018,2]
[401155863,1767988248754,-809.19000073,0.00018,2]
[401155864,1767988248765,-2309.35175414,0.00018,2]
[401155865,1767988248776,-1929.48155371,0.00018,2]
[401155866,1767988248789,-3859.8,0.00018,2]
[401155867,1767988248800,-2377.39922913,0.00018,2]
[401155868,1767988248811,-12942.29999276,0.00018,2]
[401155869,1767988248822,-4325.478,0.00018,2]
[401155870,1767988248835,-134839.98575055,0.00018,2]
[401155871,1767988248854,-1952.19000006,0.00018,2]
[401155872,1767988248868,-18840.0,0.00018,2]
[401155873,1767988248879,-104001.97488092,0.00018,2]
[401155879,1767989432681,-278.37010461,0.00015186,2]
[401155881,1767989432691,-250.0,0.00015207,2]
[401155882,1767989432700,-183.91649708,0.00015208,2]
[401155883,1767989432709,-177.41377294,0.00015269,2]
[401155884,1767989432720,-586.2170119,0.00015278,2]
[401155885,1767989432730,-163.13558818,0.00015278,2]
[401155886,1767989432741,-1200.0,0.00015278,2]
[401155887,1767989432751,-300.0,0.00015278,2]
[401155888,1767989432760,-109589.02373841,0.00015279,2]
[401155889,1767989432771,-8573.77695599,0.00015279,2]
[401155890,1767989433021,-173.0387978,0.00015278,2]
[401155891,1767989433031,-1828.36111368,0.00015279,2]
[401155892,1767989433462,-1807.18000854,0.00015279,2]
[401155893,1767989433473,-609.8984744,0.00015279,2]
[401155894,1767989433529,-1570.57116541,0.00015279,2]
[401155895,1767989433574,-500.0,0.00015279,2]
[401155897,1767989438362,-500.0,0.00015278,2]
[401155898,1767989438371,-500.0,0.00015278,2]
[401155900,1767989438381,-500.0,0.00015278,2]
[401155901,1767989438391,-411.42010926,0.00015278,2]
[401155902,1767989438450,-88.57989074,0.00015278,2]
[401155903,1767989438460,-500.0,0.00015278,2]
[401155904,1767989438469,-511.15452297,0.00015278,2]
[401155905,1767989438479,-5223.37863164,0.00015279,2]
[401155906,1767989438501,-942.2,0.00015279,2]
[401155907,1767989438578,-92619.24145759,0.00015279,2]
[401155917,1767989440406,-3436.85276673,0.00015279,2]
[401155918,1767989440523,-451.9452,0.00015279,2]
[401155919,1767989440534,-910.1,0.00015279,2]
[401155920,1767989440630,-771937.47048761,0.00015279,2]
[401155921,1767989440640,-250.0,0.00015286,2]
[401155922,1767989440649,-323.88,0.0001537,2]
[401155923,1767989440658,-33584.3474,0.00015379,2]
[401155924,1767989440667,-255.0,0.00015476,2]
[401155925,1767989440676,-500.0,0.00015478,2]
[401155926,1767989440686,-568.66331461,0.00015478,2]
[401155927,1767989440695,-500.0,0.00015478,2]
[401155928,1767989440704,-500.0,0.00015478,2]
[401155929,1767989440713,-500.0,0.00015478,2]
[401155930,1767989440722,-500.0,0.00015478,2]
[401155931,1767989440731,-323.88,0.00015644,2]
[401155932,1767989440741,-323.9,0.00015918,2]
[401155933,1767989440751,-301.85,0.00015931,2]
[401155934,1767989440760,-151.0,0.00015944,2]
[401155935,1767989440770,-151.0,0.00015944,2]
[401155936,1767989440779,-200.0,0.0001609,2]
[401155937,1767989440788,-151.0,0.0001609,2]
[401155939,1767989440799,-151.0,0.0001609,2]
[401155941,1767989440809,-151.0,0.0001609,2]
[401155942,1767989440817,-151.0,0.0001609,2]
[401155943,1767989440826,-151.0,0.0001609,2]
[401155944,1767989440835,-151.0,0.0001609,2]
[401155945,1767989440844,-151.0,0.0001609,2]
[401155947,1767989440854,-151.0,0.0001609,2]
[401155948,1767989440863,-500.0,0.0001609,2]
[401155949,1767989440872,-151.0,0.0001609,2]
[401155950,1767989440882,-500.0,0.0001609,2]
[401155951,1767989440891,-151.0,0.0001609,2]
[401155952,1767989440901,-500.0,0.0001609,2]
[401155953,1767989440910,-151.0,0.0001609,2]
[401155954,1767989440919,-500.0,0.0001609,2]
[401155955,1767989440928,-151.0,0.0001609,2]
[401155956,1767989440937,-500.0,0.0001609,2]
[401155957,1767989440946,-151.0,0.0001609,2]
[401155958,1767989440956,-500.0,0.0001609,2]
[401155959,1767989440965,-151.56294487,0.0001609,2]
[401155960,1767989440974,-500.0,0.0001609,2]
[401155961,1767989440983,-500.0,0.0001609,2]
[401155962,1767989440993,-500.0,0.0001609,2]
[401155963,1767989441002,-500.0,0.0001609,2]
[401155964,1767989441011,-500.0,0.0001609,2]
[401155965,1767989441020,-500.0,0.0001609,2]
[401155966,1767989441030,-500.0,0.0001609,2]
[401155967,1767989441039,-500.0,0.0001609,2]
[401155968,1767989441048,-500.0,0.0001609,2]
[401155969,1767989441057,-500.0,0.0001609,2]
[401155970,1767989441066,-500.0,0.0001609,2]
[401155971,1767989441076,-500.0,0.0001609,2]
[401155972,1767989441085,-500.0,0.0001609,2]
[401155973,1767989441095,-151.0,0.0001609,2]
[401155974,1767989441104,-151.0,0.0001609,2]
[401155975,1767989441113,-151.0,0.0001609,2]
[401155976,1767989441122,-151.0,0.0001609,2]
[401155977,1767989441134,-151.0,0.0001609,2]
[401155978,1767989441148,-151.0,0.0001609,2]
[401155979,1767989441158,-151.0,0.0001609,2]
[401155980,1767989441167,-151.0,0.0001609,2]
[401155981,1767989441179,-151.0,0.0001609,2]
[401155982,1767989441188,-151.0,0.0001609,2]
[401155983,1767989441198,-151.0,0.0001609,2]
[401155984,1767989441209,-151.0,0.0001609,2]
[401155985,1767989441218,-85307.77,0.000161,2]
[401155986,1767989441227,-854.19,0.0001612,2]
[401155987,1767989441238,-1476.79,0.00016222,2]
[401155988,1767989441249,-500.0,0.00016327,2]
[401155989,1767989441258,-491.46,0.00016341,2]
[401155990,1767989441268,-500.0,0.00016382,2]
[401155991,1767989441278,-278.37010461,0.0001639,2]
[401155992,1767989441288,-500.0,0.00016437,2]
[401155993,1767989441298,-161.78,0.00016467,2]
[401155994,1767989441308,-500.0,0.00016491,2]
[401155995,1767989441319,-500.0,0.00016546,2]
[401155996,1767989441328,-1000.0,0.00016561,2]
[401155997,1767989441338,-500.0,0.00016601,2]
[401155998,1767989441348,-500.0,0.00016641,2]
[401155999,1767989441358,-661.58,0.00016641,2]
[401156000,1767989441368,-661.58,0.00016641,2]
[401156001,1767989441377,-661.58,0.00016641,2]
[401156002,1767989441387,-661.58,0.00016641,2]
[401156003,1767989441396,-3189.89,0.00016645,2]
[401156004,1767989441406,-500.0,0.00016656,2]
[401156005,1767989441416,-166.66,0.00016709,2]
[401156006,1767989441425,-500.0,0.00016711,2]
[401156007,1767989441435,-420.0,0.00016716,2]
[401156008,1767989441446,-300.0,0.00016726,2]
[401156009,1767989441455,-195.0,0.00016726,2]
[401156010,1767989441465,-250.0,0.00016726,2]
[401156011,1767989441475,-195.0,0.00016726,2]
[401156012,1767989441485,-434.02140532,0.00016765,2]
[401156013,1767989441497,-466.84,0.00016778,2]
[401156014,1767989441507,-1680.0,0.00016801,2]
[401156015,1767989441516,-301.85,0.00016816,2]
[401156016,1767989441525,-661.58,0.00016841,2]
[401156017,1767989441535,-150.0,0.00016913,2]
[401156018,1767989441544,-500.0,0.00016913,2]
[401156019,1767989441554,-150.0,0.00016913,2]
[401156020,1767989441563,-150.0,0.00016913,2]
[401156021,1767989441573,-500.0,0.00016913,2]
[401156022,1767989441583,-150.0,0.00016913,2]
[401156023,1767989441592,-184.12,0.00016934,2]
[401156024,1767989441602,-150.0,0.0001694,2]
[401156025,1767989441611,-661.58,0.00016941,2]
[401156026,1767989441621,-150.0,0.00016968,2]
[401156027,1767989441631,-500.0,0.00016968,2]
[401156028,1767989441640,-150.0,0.00016968,2]
[401156029,1767989441650,-150.0,0.00016968,2]
[401156030,1767989441659,-500.0,0.00016968,2]
[401156031,1767989441668,-150.32834793,0.00016968,2]
[401156032,1767989441677,-466.84,0.00016978,2]
[401156033,1767989441687,-1000.0,0.00016999,2]
[401156034,1767989441696,-250.0,0.00017,2]
[401156035,1767989441705,-150.0,0.00017023,2]
[401156036,1767989441715,-477.21977526,0.00017023,2]
[401156037,1767989441724,-150.0,0.00017023,2]
[401156038,1767989441733,-284.45106114,0.00017023,2]
[401156039,1767989441743,-275.7864976,0.00017023,2]
[401156040,1767989441752,-200.81420272,0.00017077,2]
[401156041,1767989441762,-150.0,0.00017077,2]
[401156042,1767989441771,-466.84,0.00017078,2]
[401156043,1767989441781,-251.24853456,0.00017089,2]
[401156044,1767989441790,-500.0,0.00017099,2]
[401156045,1767989441800,-500.0,0.00017099,2]
[401156046,1767989441809,-500.0,0.00017099,2]
[401156047,1767989441820,-500.0,0.00017099,2]
[401156048,1767989441830,-500.0,0.00017099,2]
[401156049,1767989441839,-500.0,0.00017099,2]
[401156050,1767989441849,-500.0,0.00017099,2]
[401156051,1767989441858,-500.0,0.00017099,2]
[401156052,1767989441867,-500.0,0.00017099,2]
[401156053,1767989441877,-500.0,0.00017099,2]
[401156054,1767989441886,-500.0,0.00017099,2]
[401156055,1767989441896,-322.6107,0.00017099,2]
[401156056,1767989441906,-500.0,0.00017099,2]
[401156057,1767989441915,-500.0,0.00017099,2]
[401156058,1767989441925,-500.0,0.00017099,2]
[401156059,1767989441935,-500.0,0.00017099,2]
[401156060,1767989441944,-500.0,0.00017099,2]
[401156061,1767989441953,-500.0,0.00017099,2]
[401156062,1767989441963,-500.0,0.00017099,2]
[401156063,1767989441972,-500.0,0.00017099,2]
[401156064,1767989441981,-500.0,0.00017099,2]
[401156065,1767989441991,-500.0,0.00017099,2]
[401156066,1767989442003,-571.49862836,0.00017099,2]
[401156067,1767989442013,-250.0,0.00017099,2]
[401156068,1767989442023,-250.0,0.00017099,2]
[401156069,1767989442032,-250.0,0.00017099,2]
[401156070,1767989442042,-250.0,0.00017099,2]
[401156071,1767989442052,-250.0,0.00017099,2]
[401156072,1767989442061,-2000.0,0.00017099,2]
[401156073,1767989442071,-250.0,0.00017099,2]
[401156074,1767989442080,-2000.0,0.00017099,2]
[401156075,1767989442090,-250.0,0.00017099,2]
[401156076,1767989442100,-2000.0,0.00017099,2]
[401156077,1767989442109,-250.0,0.00017099,2]
[401156078,1767989442119,-2000.0,0.00017099,2]
[401156079,1767989442128,-250.0,0.00017099,2]
[401156080,1767989442141,-2000.0,0.00017099,2]
[401156081,1767989442151,-250.0,0.00017099,2]
[401156082,1767989442162,-2000.0,0.00017099,2]
[401156083,1767989442171,-250.0,0.00017099,2]
[401156084,1767989442182,-2000.0,0.00017099,2]
[401156085,1767989442192,-250.0,0.00017099,2]
[401156086,1767989442201,-2000.0,0.00017099,2]
[401156087,1767989442211,-407.91279506,0.00017099,2]
[401156088,1767989442220,-1000.0,0.00017099,2]
[401156089,1767989442230,-1000.0,0.00017099,2]
[401156090,1767989442240,-1000.0,0.00017099,2]
[401156091,1767989442252,-1000.0,0.00017099,2]
[401156092,1767989442261,-1000.0,0.00017099,2]
[401156093,1767989442271,-1000.0,0.00017099,2]
[401156094,1767989442280,-1000.0,0.00017099,2]
[401156095,1767989442290,-1000.0,0.00017099,2]
[401156096,1767989442300,-1000.0,0.00017099,2]
[401156097,1767989442310,-1000.0,0.00017099,2]
[401156098,1767989442319,-1000.0,0.00017099,2]
[401156099,1767989442329,-553.64373807,0.00017099,2]
[401156100,1767989442339,-1000.0,0.00017099,2]
[401156101,1767989442349,-620.0,0.00017099,2]
[401156102,1767989442359,-150.0,0.00017132,2]
[401156103,1767989442368,-661.58,0.00017141,2]
[401156104,1767989442378,-159.10718444,0.00017154,2]
[401156105,1767989442388,-333.5954,0.00017176,2]
[401156106,1767989442398,-326.12,0.00017178,2]
[401156107,1767989442409,-1000.0,0.00017182,2]
[401156108,1767989442418,-178.73,0.00017187,2]
[401156109,1767989442427,-346.79,0.00017278,2]
[401156110,1767989442437,-466.84,0.00017278,2]
[401156111,1767989442446,-229.0,0.00017335,2]
[401156112,1767989442456,-986.0,0.00017408,2]
[401156113,1767989442466,-986.0,0.00017463,2]
[401156114,1767989442475,-259.08982472,0.000175,2]
[401156115,1767989442484,-986.0,0.00017518,2]
[401156116,1767989442496,-986.0,0.00017572,2]
[401156117,1767989442505,-278.37010461,0.00017593,2]
[401156118,1767989442516,-986.0,0.00017627,2]
[401156119,1767989442526,-166.66,0.00017628,2]
[401156120,1767989442535,-2082.29932478,0.0001764,2]
[401156121,1767989442544,-574.12855637,0.00017647,2]
[401156122,1767989442554,-23229.31138884,0.00017663,2]
[401156123,1767989442564,-466.84,0.00017672,2]
[401156124,1767989442573,-466.84,0.00017672,2]
[401156125,1767989442583,-466.84,0.00017672,2]
[401156126,1767989442592,-732.4,0.00017672,2]
[401156127,1767989442601,-262.22,0.00017672,2]
[401156128,1767989442611,-466.84,0.00017672,2]
[401156129,1767989442620,-466.84,0.00017672,2]
[401156130,1767989442630,-466.84,0.00017672,2]
[401156131,1767989442639,-183.506,0.0001768,2]
[401156132,1767989442649,-986.0,0.00017682,2]
[401156133,1767989442660,-3072.247,0.00017682,2]
[401156134,1767989442669,-487.97,0.00017682,2]
[401156135,1767989442679,-53366.94356016,0.00017693,2]
[401156136,1767989442689,-86812.41570913,0.00017693,2]
[401156137,1767989442698,-122605.04055754,0.00017693,2]
[401156138,1767989442708,-158648.3316,0.00017693,2]
[401156139,1767989442718,-1000.0,0.000177,2]
[401156140,1767989442727,-301.85,0.00017701,2]
[401156141,1767989442737,-6709.59935273,0.0001773,2]
[401156142,1767989442748,-986.0,0.00017737,2]
[401156143,1767989442758,-456.0,0.0001777,2]
[401156144,1767989442767,-151.0,0.00017773,2]
[401156145,1767989442778,-986.0,0.00017792,2]
[401156146,1767989442789,-22581.67070426,0.00017799,2]
[401156147,1767989442798,-2000.0,0.000178,2]
[401156148,1767989442808,-10101.4972,0.000178,2]
[401156149,1767989442818,-324.15625178,0.000178,2]
[401156150,1767989442827,-1000.0,0.000178,2]
[401156151,1767989442836,-376.90325807,0.000178,2]
[401156152,1767989442846,-1000.0,0.00017803,2]
[401156153,1767989442855,-200.35779431,0.00017808,2]
[401156154,1767989442864,-456.0,0.00017815,2]
[401156155,1767989442873,-324.15625178,0.00017817,2]
[401156156,1767989442883,-150.0,0.00017826,2]
[401156157,1767989442892,-324.15625178,0.00017833,2]
[401156158,1767989442902,-226.0,0.00017845,2]
[401156159,1767989442911,-986.0,0.00017846,2]
[401156160,1767989442920,-324.15625178,0.0001785,2]
[401156161,1767989442930,-376.90325805,0.0001785,2]
[401156162,1767989442940,-200.0,0.00017855,2]
[401156163,1767989442949,-2000.0,0.00017856,2]
[401156164,1767989442958,-200.0,0.00017856,2]
[401156165,1767989442967,-200.0,0.00017856,2]
[401156166,1767989442976,-324.15625178,0.00017867,2]
[401156167,1767989442985,-324.15625178,0.00017883,2]
[401156168,1767989442996,-151.0,0.00017886,2]
[401156169,1767989443005,-4141.64774445,0.00017899,2]
[401156170,1767989443015,-4141.64774443,0.00017899,2]
[401156171,1767989443025,-4141.64774443,0.00017899,2]
[401156172,1767989443034,-4141.64774443,0.000179,2]
[401156173,1767989443044,-150.0,0.000179,2]
[401156174,1767989443054,-4141.64774443,0.000179,2]
[401156175,1767989443064,-1000.0,0.000179,2]
[401156176,1767989443073,-10000.0,0.000179,2]
[401156177,1767989443083,-324.15625178,0.000179,2]
[401156178,1767989443094,-9704.82107619,0.000179,3]
[401156179,1767989443104,-565.17771938,0.000179,2]
[401156180,1767989443114,-1682.642727,0.000179,2]
[401156181,1767989443123,-1682.64272699,0.000179,2]
[401156182,1767989443135,-1682.64272699,0.000179,2]
[401156183,1767989443144,-1682.64272699,0.000179,2]
[401156185,1767989443153,-1682.64272699,0.000179,2]
[401156186,1767989443163,-1682.64272699,0.000179,2]
[401156187,1767989443172,-1682.64272699,0.000179,2]
[401156188,1767989443183,-1682.64272699,0.000179,2]
[401156189,1767989443193,-1000.0,0.000179,2]
[401156190,1767989443203,-1682.64272699,0.000179,2]
[401156191,1767989443213,-1682.64272699,0.000179,2]
[401156192,1767989443222,-1682.64272699,0.000179,2]
[401156193,1767989443232,-1682.64272699,0.000179,2]
[401156194,1767989443241,-1682.64272699,0.000179,2]
[401156195,1767989443250,-1682.64272699,0.000179,2]
[401156196,1767989443260,-1682.64272699,0.000179,2]
[401156197,1767989443269,-1682.64272699,0.000179,2]
[401156198,1767989443279,-1682.64272699,0.000179,2]
[401156199,1767989443288,-1682.64272699,0.000179,2]
[401156200,1767989443298,-1682.64272699,0.000179,2]
[401156201,1767989443308,-1682.64272699,0.000179,2]
[401156202,1767989443317,-5055.06085975,0.000179,2]
[401156203,1767989443326,-5419.66632669,0.000179,2]
[401156204,1767989443335,-4141.64774443,0.000179,2]